bitfinex-derivatives/quotes_SOLF0:USTF0_20250127
["timestamp","ask_amount","ask_price","bid_price","bid_amount"]
[1737954212359,11.726,231.34,231.22,29.42043306]
[1737954212660,0.02851024,231.3,231.26,0.02863676]
[1737954213159,0.02851024,231.3,231.28,4.326]
[1737954213361,0.02851024,231.3,231.26,29.44906982]
[1737954213555,2.4247,231.42,231.26,29.44906982]
[1737954213857,4.3234,231.43,231.34,4.325]
[1737954214053,5.2714,231.46,231.35,29.42043306]
[1737954214255,5.2714,231.46,231.38,4.3241]
[1737954214453,4.3232,231.44,231.38,4.3241]
[1737954214661,4.3232,231.44,231.36,29.30465542]
[1737954214960,4.3236,231.42,231.4,0.02761857]
[1737954215157,0.0331264,231.44,231.27,3.78]
[1737954215359,5.2714,231.46,231.27,3.78]
[1737954215864,5.2714,231.46,231.3,18.04832955]
[1737954216161,5.2714,231.46,231.34,18.04832955]
[1737954216360,0.02984823,231.4,231.36,0.02758001]
[1737954219559,0.02984823,231.4,231.36,4.35218001]
[1737954219763,0.02984823,231.4,231.36,0.02758001]
[1737954220263,4.3243,231.38,231.36,0.02758001]
[1737954220465,0.02984823,231.4,231.36,0.02758001]
[1737954220860,0.02984823,231.4,231.26,18.04832955]
[1737954221359,4.3239,231.4,231.25,4.3266]
[1737954221557,5.0433,231.39,231.25,4.3266]
[1737954221761,5.0433,231.39,231.22,18.04832955]
[1737954222165,4.35479149,231.33,231.29,0.03010126]
[1737954222561,0.02949149,231.33,231.29,0.03010126]
[1737954222861,4.3254,231.32,231.29,0.03010126]
[1737954223065,0.02949149,231.33,231.29,0.03010126]
[1737954223565,4.3257,231.3,231.29,0.03010126]
[1737954223767,0.02949149,231.33,231.29,0.03010126]
[1737954225162,4.3256,231.31,231.29,0.03010126]
[1737954226062,2.2468,231.32,231.23,81.0]
[1737954226565,2.2468,231.32,231.18,18.04832955]
[1737954226566,2.2468,231.32,231.14,18.04832955]
[1737954226765,4.3276,231.2,231.14,18.04832955]
[1737954226959,2.2468,231.32,231.17,4.3281]
[1737954227162,4.3265,231.27,231.18,18.04832955]
[1737954227370,2.2468,231.32,231.18,18.04832955]
[1737954227667,2.2468,231.32,231.23,4.327]
[1737954228161,4.3257,231.3,231.25,4.3266]
[1737954228363,4.35614189,231.3,231.25,4.35850786]
[1737954228868,4.35614189,231.3,231.25,0.03190786]
[1737954229060,0.03044189,231.3,231.25,0.03190786]
[1737954229766,4.35614189,231.3,231.25,0.03190786]
[1737954230165,0.03044189,231.3,231.26,18.04832955]
[1737954230367,4.3263,231.27,231.25,0.03190786]
[1737954230867,4.35634189,231.3,231.25,0.03190786]
[1737954231068,0.03044189,231.3,231.25,0.03190786]
[1737954232070,4.3261,231.28,231.25,0.03190786]
[1737954233762,0.03044189,231.3,231.26,18.04832955]
[1737954233968,0.03044189,231.3,231.25,0.03190786]
[1737954234364,4.3265,231.26,231.25,0.03190786]
[1737954234570,2.4199,231.29,231.17,18.04832955]
[1737954234872,2.4199,231.29,231.05,80.94]
[1737954234873,4.9824,231.28,231.13,18.04832955]
[1737954235760,4.3278,231.19,231.18,0.02889596]
[1737954235968,0.03095193,231.23,231.13,18.04832955]
[1737954236171,4.9824,231.28,231.13,18.04832955]
[1737954236370,4.3284,231.16,231.13,18.04832955]
[1737954236771,4.9824,231.28,231.09,18.04832955]
[1737954236966,4.3291,231.12,231.09,18.04832955]
[1737954237466,0.02989733,231.13,231.08,0.0297874]
[1737954237672,18.04832955,231.15,230.9,18.04832955]
[1737954237971,4.339,231.2,230.9,18.04832955]
[1737954237972,4.3305,231.05,230.9,18.04832955]
[1737954238165,18.04832955,231.11,230.9,18.04832955]
[1737954238568,18.04832955,231.11,230.86,18.04832955]
[1737954238765,0.03269482,231.03,230.98,0.02783427]
[1737954239174,4.3316,230.99,230.98,0.02783427]
[1737954239775,4.3323,230.95,230.86,22.38222955]
[1737954239977,2.4557,231.02,230.86,22.38222955]
[1737954240169,2.4557,231.02,230.86,18.04832955]
[1737954240365,4.3321,230.96,230.87,4.3337]
[1737954240573,2.4557,231.02,230.9,18.04832955]
[1737954241075,0.02853428,230.98,230.94,0.0326556]
[1737954241963,0.02853428,230.98,230.83,7.4966]
[1737954241964,0.02853428,230.98,230.83,4.7199]
[1737954242365,4.3336,230.88,230.82,18.04832955]
[1737954242568,18.04832955,231.01,230.82,18.04832955]
[1737954242774,2.4598,231.0,230.82,18.04832955]
[1737954242970,4.3333,230.9,230.82,18.04832955]
[1737954243163,4.3333,230.9,230.89,0.03139693]
[1737954243566,4.3324,230.95,230.82,18.04832955]
[1737954243766,0.03214309,230.92,230.87,18.07861102]
[1737954244871,0.03214309,230.92,230.87,0.03028147]
[1737954245574,4.3332,230.9,230.87,0.03028147]
[1737954245775,0.03214309,230.92,230.87,0.03028147]
[1737954246070,4.3334,230.89,230.87,0.03028147]
[1737954246275,0.03214309,230.92,230.87,0.03028147]
[1737954246976,0.03214309,230.92,230.87,18.07861102]
[1737954247376,0.03214309,230.92,230.87,0.03028147]
[1737954247777,4.3335,230.89,230.87,0.03028147]
[1737954248281,0.03214309,230.92,230.87,0.03028147]
[1737954249769,4.3331,230.91,230.87,0.03028147]
[1737954249969,0.03214309,230.92,230.87,0.03028147]
[1737954250175,0.03214309,230.92,230.76,4.5517]
[1737954250374,18.04832955,230.97,230.76,4.5517]
[1737954250975,18.04832955,230.97,230.79,4.3352]
[1737954251377,4.3338,230.87,230.86,0.02883302]
[1737954251579,0.03100163,230.9,230.78,4.3354]
[1737954251779,0.03100163,230.9,230.76,4.5517]
[1737954252079,18.04832955,230.97,230.76,4.5517]
[1737954252482,18.04832955,230.97,230.8,4.335]
[1737954252681,0.02768125,230.89,230.84,0.02962206]
[1737954254377,0.02768125,230.89,230.87,4.3336]
[1737954254582,0.02768125,230.89,230.84,0.02962206]
[1737954255378,0.02768125,230.89,230.88,4.3336]
[1737954256283,2.4598,231.0,230.87,18.04832955]
[1737954257184,4.3316,230.99,230.92,4.3328]
[1737954257385,4.3316,230.99,230.87,18.04832955]
[1737954257686,0.03137667,230.98,230.93,0.03220223]
[1737954258486,4.36307667,230.98,230.93,0.03220223]
[1737954258987,4.36307667,230.98,230.93,4.36480223]
[1737954260293,4.3319,230.97,230.93,0.03220223]
[1737954260488,0.03137667,230.98,230.93,0.03220223]
[1737954260988,4.36317667,230.98,230.93,4.36480223]
[1737954261588,0.03137667,230.98,230.93,4.36480223]
[1737954261790,0.03137667,230.98,230.93,0.03220223]
[1737954261989,0.03137667,230.98,230.94,4.3325]
[1737954262893,4.3324,230.95,230.93,0.03220223]
[1737954263089,0.03137667,230.98,230.93,0.03220223]
[1737954263587,4.3325,230.94,230.93,0.03220223]
[1737954263984,4.3325,230.94,230.81,5.2023]
[1737954263985,4.3336,230.88,230.84,4.3342]
[1737954264591,4.9854,230.97,230.83,18.04832955]
[1737954264993,4.9854,230.97,230.82,4.3346]
[1737954265295,0.032576,230.92,230.88,0.02939808]
[1737954265894,4.3331,230.91,230.88,0.02939808]
[1737954266094,0.032576,230.92,230.88,0.02939808]
[1737954267591,4.3334,230.89,230.88,0.02939808]
[1737954268093,0.032576,230.92,230.88,0.02939808]
[1737954268794,4.365576,230.92,230.88,0.02939808]
[1737954269493,0.032576,230.92,230.88,4.36289808]
[1737954269697,0.032576,230.92,230.88,0.02939808]
[1737954269997,0.032576,230.92,230.9,4.3331]
[1737954270191,0.032576,230.92,230.88,0.02939808]
[1737954270698,0.032576,230.92,230.91,4.333]
[1737954272995,0.032576,230.92,230.88,0.02939808]
[1737954273295,0.032576,230.92,230.9,4.3332]
[1737954274101,0.032576,230.92,230.88,0.02939808]
[1737954275100,4.365476,230.92,230.88,0.02939808]
[1737954276104,4.3332,230.9,230.88,0.02939808]
[1737954276501,4.3334,230.89,230.88,0.02939808]
[1737954276805,0.032576,230.92,230.81,81.08]
[1737954277007,2.7102,230.91,230.81,81.08]
[1737954278004,0.02918247,230.88,230.84,0.0326977]
[1737954278204,4.334,230.86,230.84,0.0326977]
[1737954278709,4.3342,230.85,230.84,0.0326977]
[1737954278911,0.02918247,230.88,230.83,5.29]
[1737954279707,4.3343,230.84,230.83,5.29]
[1737954279904,0.02918247,230.88,230.81,81.08]
[1737954280209,0.02918247,230.88,230.81,81.10986255]
[1737954280410,4.3344,230.84,230.81,81.10986255]
[1737954280606,0.02918247,230.88,230.81,81.10986255]
[1737954282008,0.02918247,230.88,230.84,4.3343]
[1737954283312,4.36278247,230.88,230.82,4.3345]
[1737954283908,4.3342,230.85,230.81,0.02986255]
[1737954284208,0.02918247,230.88,230.81,0.02986255]
[1737954284408,4.3342,230.85,230.81,0.02986255]
[1737954285415,0.02918247,230.88,230.81,0.02986255]
[1737954285715,8.247e-05,230.88,230.84,19.01620802]
[1737954287716,8.247e-05,230.88,230.81,0.02986255]
[1737954288117,8.247e-05,230.88,230.83,4.3344]
[1737954288507,8.247e-05,230.88,230.81,0.02986255]
[1737954289221,8.247e-05,230.88,230.84,4.3343]
[1737954289615,8.247e-05,230.88,230.81,0.02986255]
[1737954290818,4.3347,230.82,230.81,0.02986255]
[1737954292013,8.3245,230.87,230.72,19.01620802]
[1737954292214,27.34070802,230.87,230.68,19.01620802]
[1737954292617,4.3366,230.73,230.68,19.01620802]
[1737954292824,27.34070802,230.87,230.68,19.01620802]
[1737954293323,0.03239938,230.8,230.75,0.02912517]
[1737954293620,0.03239938,230.8,230.75,2.10882517]
[1737954294216,4.3358,230.76,230.75,2.10882517]
[1737954294817,0.03239938,230.8,230.73,2.913e-05]
[1737954295126,19.01620802,230.83,230.6,19.01620802]
[1737954295623,19.01620802,230.83,230.61,4.3385]
[1737954296021,4.3373,230.69,230.62,4.3384]
[1737954296323,19.01620802,230.83,230.6,19.01620802]
[1737954296524,19.01620802,230.83,230.62,4.3384]
[1737954296525,0.02788594,230.68,230.62,4.3384]
[1737954296723,4.3369,230.71,230.6,19.01620802]
[1737954296925,0.03298547,230.67,230.6,19.01620802]
[1737954297126,4.3372,230.7,230.64,4.338]
[1737954297326,19.01620802,230.83,230.64,4.338]
[1737954297525,0.03059886,230.66,230.64,4.338]
[1737954297725,4.3372,230.69,230.62,4.3383]
[1737954297927,0.02831748,230.67,230.6,19.01620802]
[1737954298327,0.02831748,230.67,230.64,4.3381]
[1737954298923,0.02831748,230.67,230.65,4.3378]
[1737954299125,0.02831748,230.67,230.6,27.21620802]
[1737954299530,0.02831748,230.67,230.66,4.3377]
[1737954301134,191.0,230.86,230.68,4.3372]
[1737954301426,191.0,230.86,230.68,19.01620802]
[1737954301627,4.335,230.81,230.68,19.01620802]
[1737954301832,8.3245,230.87,230.72,19.01620802]
[1737954302031,8.3245,230.87,230.76,19.01620802]
[1737954302231,5.2065,230.87,230.76,19.01620802]
[1737954302529,0.03026529,230.84,230.79,0.02843354]
[1737954302932,0.03026529,230.84,230.81,4.3347]
[1737954303132,0.03026529,230.84,230.79,0.02843354]
[1737954303133,191.0,230.99,230.8,19.01620802]
[1737954303332,5.241,230.98,230.86,19.01620802]
[1737954303828,5.241,230.98,230.81,8.1164]
[1737954304026,19.01620802,230.96,230.8,3.46]
[1737954304430,19.01620802,230.96,230.86,0.0310447]
[1737954304431,0.03112599,230.9,230.86,0.0310447]
[1737954304731,4.36442599,230.9,230.86,0.0310447]
[1737954304925,0.03112599,230.9,230.86,0.0310447]
[1737954305934,4.3336,230.88,230.86,0.0310447]
[1737954306428,0.03112599,230.9,230.86,0.0310447]
[1737954307134,4.3334,230.89,230.86,0.0310447]
[1737954307935,4.3336,230.88,230.86,0.0310447]
[1737954310734,4.3349,230.81,230.8,3.46]
[1737954310931,19.01620802,230.92,230.6,8.2]
[1737954310932,5.8777,230.87,230.67,19.01620802]
[1737954311538,5.8777,230.87,230.67,23.35370802]
[1737954311739,5.8777,230.87,230.67,19.01620802]
[1737954312038,0.03189839,230.79,230.67,23.35370802]
[1737954312239,0.03189839,230.79,230.75,0.0285968]
[1737954312635,4.3358,230.76,230.75,0.0285968]
[1737954313638,4.3358,230.76,230.75,9.68e-05]
[1737954315542,4.3358,230.76,230.6,8.2]
[1737954315543,19.01620802,230.76,230.6,8.2]
[1737954315841,5.8746,230.75,230.6,8.2]
[1737954316039,8.5691,230.75,230.6,8.2]
[1737954316542,4.3369,230.71,230.6,8.2]
[1737954316737,0.03012214,230.7,230.6,8.2]
[1737954317837,4.3383,230.63,230.6,8.2]
[1737954318045,8.5691,230.75,230.6,8.2]
[1737954318247,0.03158745,230.64,230.6,8.2]
[1737954318439,4.3385,230.62,230.6,8.2]
[1737954319441,0.03325145,230.64,230.6,8.2]
[1737954319645,0.03325145,230.64,230.61,4.3386]
[1737954319847,0.03325145,230.64,230.6,8.2]
[1737954321347,4.3384,230.63,230.6,11.66]
[1737954321542,0.03325145,230.64,230.6,11.66]
[1737954321945,4.3386,230.62,230.6,4.1791]
[1737954322141,19.04945947,230.64,230.43,21.78370802]
[1737954322342,8.3153,230.63,230.44,4.3418]
[1737954322545,0.02790699,230.56,230.44,4.3418]
[1737954322850,4.3407,230.51,230.44,4.3418]
[1737954323050,8.3153,230.63,230.44,4.3418]
[1737954323249,0.03309786,230.52,230.43,21.78370802]
[1737954323548,4.3412,230.48,230.39,19.01620802]
[1737954323750,19.01620802,230.6,230.41,4.3423]
[1737954323944,0.03019817,230.46,230.41,4.3423]
[1737954324145,19.01620802,230.6,230.4,8.7578]
[1737954324347,0.0328672,230.46,230.44,4.3418]
[1737954324649,0.02976852,230.47,230.43,19.01620802]
[1737954324951,4.3401,230.54,230.44,4.3418]
[1737954325254,8.3153,230.63,230.43,19.01620802]
[1737954325644,4.3393,230.58,230.43,19.01620802]
[1737954325845,0.03237512,230.53,230.48,0.03147036]
[1737954326354,0.03237512,230.53,230.51,4.3405]
[1737954327248,0.03237512,230.53,230.48,0.03147036]
[1737954328256,0.03237512,230.53,230.5,4.3406]
[1737954328952,0.03237512,230.53,230.48,0.03147036]
[1737954330758,0.03237512,230.53,230.49,4.3407]
[1737954330959,0.03237512,230.53,230.48,0.03147036]
[1737954331756,19.01620802,230.68,230.48,0.03147036]
[1737954331955,4.3385,230.62,230.5,19.01620802]
[1737954332158,19.01620802,230.72,230.51,5.7443]
[1737954332961,0.02836968,230.64,230.59,0.03149301]
[1737954333655,0.02836968,230.64,230.59,7.14149301]
[1737954334661,0.02836968,230.64,230.62,4.3384]
[1737954334861,7.88638679,230.76,230.63,3.0374]
[1737954335364,3.2386,230.81,230.63,3.0374]
[1737954335563,3.2386,230.81,230.64,2.6849]
[1737954335960,3.2386,230.81,230.7,0.031059]
[1737954335961,0.02886483,230.75,230.7,0.031059]
[1737954336358,4.3363,230.74,230.7,0.031059]
[1737954339963,0.02886483,230.75,230.7,0.031059]
[1737954342273,4.3368,230.71,230.7,0.031059]
[1737954348366,0.02886483,230.75,230.7,0.031059]
[1737954350467,117.19174778,230.92,230.71,19.01620802]
[1737954350664,4.333,230.92,230.82,4.3346]
[1737954350870,23.37849559,230.93,230.8,19.01620802]
[1737954351069,23.37849559,230.93,230.81,5.8555]
[1737954351766,0.03119547,230.89,230.85,4.36447171]
[1737954351970,0.03119547,230.89,230.85,0.03037171]
[1737954353072,4.3339,230.87,230.85,0.03037171]
[1737954353973,0.03119547,230.89,230.85,0.03037171]
[1737954354973,0.03119547,230.89,230.87,4.3337]
[1737954356080,0.03119547,230.89,230.86,2.6163]
[1737954358279,0.03119547,230.89,230.88,19.01620802]
[1737954360283,4.3325,230.94,230.88,23.34970802]
[1737954360976,23.35520802,231.13,230.92,19.01620802]
[1737954361183,2.6011,231.08,230.96,19.01620802]
[1737954361378,5.6801,231.15,231.0,0.03084826]
[1737954361684,8.2812,231.15,230.96,19.01620802]
[1737954361885,0.03006299,231.1,231.05,0.02766578]
[1737954362186,4.3303,231.06,231.05,6.578e-05]
[1737954364283,4.3303,231.06,231.05,6.01006578]
[1737954364481,4.3317,230.98,230.91,4.3329]
[1737954364684,19.01620802,231.09,230.91,4.3329]
[1737954365281,19.01620802,231.09,230.92,23.34900802]
[1737954365483,0.02753805,231.02,230.98,0.03021787]
[1737954366577,4.3315,230.99,230.98,0.03021787]
[1737954368388,4.3313,231.01,230.98,0.03021787]
[1737954368589,0.02753805,231.02,230.98,0.03021787]
[1737954369184,4.3314,231.0,230.98,0.03021787]
[1737954369484,0.02753805,231.02,230.98,0.03021787]
[1737954369684,0.02753805,231.02,231.01,4.3312]
[1737954370483,0.02753805,231.02,230.98,0.03021787]
[1737954370484,7.12493857,231.14,231.04,4.3306]
[1737954370683,7.12493857,231.14,231.04,19.01620802]
[1737954371086,7.12493857,231.14,231.0,22.17240802]
[1737954371687,0.03182469,231.09,231.05,0.0327956]
[1737954372486,4.36152469,231.09,231.05,0.0327956]
[1737954372785,0.03182469,231.09,231.05,0.0327956]
[1737954373086,4.3299,231.08,231.05,0.0327956]
[1737954373388,0.03182469,231.09,231.05,0.0327956]
[1737954373589,4.3302,231.06,231.05,9.56e-05]
[1737954373888,0.03182469,231.09,230.92,19.01620802]
[1737954374088,4.3318,230.98,230.92,23.34890802]
[1737954374487,4.3318,230.98,230.92,4.3327]
[1737954374988,0.03189974,230.97,230.93,0.02805322]
[1737954375182,0.03189974,230.97,230.93,4.36055322]
[1737954375890,0.03189974,230.97,230.94,4.3323]
[1737954376086,0.03189974,230.97,230.93,0.02805322]
[1737954376988,0.03189974,230.97,230.93,6.70805322]
[1737954377192,4.3325,230.94,230.93,6.70805322]
[1737954377496,0.03189974,230.97,230.8,19.01620802]
[1737954377497,19.04810776,230.97,230.8,19.01620802]
[1737954377695,4.3334,230.89,230.82,4.3347]
[1737954377890,19.01620802,230.97,230.78,5.7741]
[1737954378091,19.01620802,230.93,230.68,83.5568]
[1737954378293,19.01620802,230.88,230.71,4.3367]
[1737954378490,19.01620802,230.88,230.71,5.7]
[1737954378696,4.335,230.81,230.78,0.02815906]
[1737954378889,0.02912909,230.83,230.78,0.02815906]
[1737954379098,0.02912909,230.83,230.8,19.01620802]
[1737954379691,0.02912909,230.83,230.81,4.3348]
[1737954380194,19.01620802,231.04,230.8,19.01620802]
[1737954380496,5.8753,231.02,230.85,19.01620802]
[1737954380695,5.8753,231.02,230.81,24.20200802]
[1737954381292,0.03318332,230.94,230.89,0.02992519]
[1737954381591,0.03318332,230.94,230.89,19.04613321]
[1737954381994,5.83585088,231.12,230.93,19.01620802]
[1737954382592,5.83585088,231.12,230.95,4.3322]
[1737954382593,4.3308,231.03,230.95,4.3322]
[1737954382891,4.3308,231.03,230.88,19.01620802]
[1737954382892,2.7145,231.11,230.88,19.01620802]
[1737954383094,4.3326,230.94,230.88,19.01620802]
[1737954383295,2.73117179,231.02,230.84,19.01620802]
[1737954383494,3.1182,231.01,230.89,0.03146222]
[1737954383697,0.03290984,230.95,230.89,0.03146222]
[1737954384395,0.03290984,230.95,230.89,19.04767024]
[1737954384797,0.03290984,230.95,230.91,4.3329]
[1737954384997,3.1182,231.07,230.93,19.01620802]
[1737954385296,5.3787,231.13,230.97,19.01620802]
[1737954385495,5.3787,231.13,231.0,4.3313]
[1737954386194,0.03280057,231.09,231.04,0.03300601]
[1737954386399,4.36260057,231.09,231.04,0.03300601]
[1737954386598,0.03280057,231.09,231.04,0.03300601]
[1737954387591,0.03280057,231.09,231.05,19.01620802]
[1737954388193,0.03280057,231.09,231.06,4.3302]
[1737954388396,5.83585088,231.18,231.05,19.01620802]
[1737954388596,5.83585088,231.18,231.04,0.03300601]
[1737954388597,5.83585088,231.18,231.09,19.01620802]
[1737954389301,3.2098,231.23,231.09,19.01620802]
[1737954389698,0.0320857,231.18,231.14,0.03330606]
[1737954390101,4.3284,231.16,231.14,0.03330606]
[1737954390302,0.0320857,231.18,231.14,0.03330606]
[1737954392000,4.3284,231.16,231.14,0.03330606]
[1737954393404,4.3284,231.16,231.14,6.06e-06]
[1737954394605,3.7,231.15,231.14,6.06e-06]
[1737954394904,4.3312,231.01,230.97,19.01620802]
[1737954395101,5.2049,231.14,230.94,9.585]
[1737954395303,4.3298,231.08,230.94,5.2527]
[1737954395496,5.2049,231.14,230.94,5.2527]
[1737954395801,4.331,231.02,230.94,5.2527]
[1737954395999,0.03095502,231.06,231.02,0.02736635]
[1737954396302,19.01620802,231.12,230.93,81.06]
[1737954396504,0.03104043,231.06,231.02,4.229e-05]
[1737954399603,0.03104043,231.06,231.03,4.3307]
[1737954399903,23.37849559,231.23,231.05,19.01620802]
[1737954400098,23.37849559,231.23,231.02,4.229e-05]
[1737954400099,23.37849559,231.23,231.1,19.01620802]
[1737954400304,23.37849559,231.23,231.17,4.3281]
[1737954400499,23.37849559,231.23,231.14,19.01620802]
[1737954400700,23.37849559,231.23,231.17,4.328]
[1737954401106,0.02770851,231.22,231.18,0.02800071]
[1737954404007,5.83585088,231.26,231.18,19.04420873]
[1737954404210,5.83585088,231.26,231.23,19.01620802]
[1737954404606,5.83585088,231.26,231.24,4.3267]
[1737954405213,17.57073338,231.27,231.25,4.3266]
[1737954405508,17.57073338,231.27,231.25,8.49]
[1737954406006,117.19174778,231.31,231.25,8.49]
[1737954406213,117.13218497,231.31,231.29,19.01620802]
[1737954406604,17.62803011,231.45,231.29,19.01620802]
[1737954407309,0.03030792,231.39,231.35,0.03230882]
[1737954407913,4.35450792,231.39,231.35,0.03230882]
[1737954408805,0.03030792,231.39,231.35,0.03230882]
[1737954409206,2.6324,231.48,231.36,19.01620802]
[1737954409412,8.305,231.57,231.4,19.01620802]
[1737954409913,8.305,231.57,231.44,19.01620802]
[1737954410507,4.34918674,231.53,231.48,0.03082311]
[1737954410807,0.02768674,231.53,231.48,0.03082311]
[1737954416620,4.3218,231.51,231.48,0.03082311]
[1737954420019,4.3218,231.51,231.48,6.90082311]
[1737954421020,0.02768674,231.53,231.48,6.90082311]
[1737954421617,19.04389476,231.53,231.32,19.01620802]
[1737954421813,19.01620802,231.45,231.27,5.5999]
[1737954422019,4.3248,231.35,231.27,9.926]
[1737954422222,2.6738,231.44,231.27,5.5999]
[1737954422617,3.2476,231.43,231.3,4.3256]
[1737954422819,0.03249554,231.38,231.33,0.02920463]
[1737954423619,4.325,231.35,231.33,0.02920463]
[1737954424123,0.03249554,231.38,231.33,0.02920463]
[1737954424824,0.03249554,231.38,231.36,4.3245]
[1737954425225,0.03249554,231.38,231.36,23.34070802]
[1737954425924,2.6061,231.52,231.4,4.3238]
[1737954426325,2.6061,231.52,231.36,19.01620802]
[1737954426627,2.6061,231.52,231.4,19.01620802]
[1737954426926,4.3214,231.54,231.4,19.01620802]
[1737954427223,4.3214,231.54,231.44,19.04936723]
[1737954427224,0.0297215,231.48,231.44,19.04936723]
[1737954427622,0.0297215,231.48,231.46,4.3226]
[1737954428021,0.0297215,231.48,231.44,19.04936723]
[1737954428229,4.3521215,231.48,231.44,0.03315921]
[1737954428428,4.32505952,231.48,231.44,0.03315921]
[1737954428624,0.00265952,231.48,231.44,0.03315921]
[1737954429319,0.00265952,231.48,231.44,3.48315921]
[1737954429523,4.3228,231.46,231.44,3.48315921]
[1737954430229,0.00265952,231.48,231.44,3.48315921]
[1737954431727,0.00265952,231.48,231.47,4.3225]
[1737954432834,0.00265952,231.48,231.44,3.48315921]
[1737954436234,4.3228,231.46,231.44,3.48315921]
[1737954436429,0.00265952,231.48,231.44,3.48315921]
[1737954436834,4.3226,231.47,231.44,3.48315921]
[1737954437134,0.00265952,231.48,231.44,3.48315921]
[1737954437339,4.3229,231.45,231.35,23.34090802]
[1737954437639,2.2624,231.47,231.35,19.01620802]
[1737954437938,4.323,231.45,231.39,4.324]
[1737954438139,4.323,231.45,231.35,19.01620802]
[1737954438541,0.02742308,231.42,231.4,4.3238]
[1737954438937,0.02742308,231.42,231.38,0.02796653]
[1737954439241,4.35092308,231.42,231.38,0.02796653]
[1737954439739,0.02742308,231.42,231.38,0.02796653]
[1737954439937,0.02742308,231.42,231.39,19.01620802]
[1737954440240,0.02742308,231.42,231.41,4.3237]
[1737954441236,0.02742308,231.42,231.38,8.79796653]
[1737954444944,0.02742308,231.42,231.38,27.81417455]
[1737954445743,0.02742308,231.42,231.38,8.79796653]
[1737954446141,4.322,231.5,231.41,4.3237]
[1737954446440,9.52548155,231.58,231.43,19.01620802]
[1737954446642,4.3211,231.55,231.48,4.3223]
[1737954446836,9.52548155,231.58,231.43,19.01620802]
[1737954447343,0.0313564,231.53,231.48,4.35379546]
[1737954447544,0.0313564,231.53,231.48,0.03149546]
[1737954449044,0.0313564,231.53,231.48,4.35369546]
[1737954449436,0.0313564,231.53,231.48,0.03149546]
[1737954449946,0.0313564,231.53,231.52,4.3216]
[1737954450142,7.5682,231.66,231.51,19.01620802]
[1737954450143,4.6062,231.66,231.51,19.01620802]
[1737954450538,4.3198,231.62,231.55,4.321]
[1737954450744,4.6062,231.66,231.51,19.01620802]
[1737954451044,4.3198,231.62,231.51,19.01620802]
[1737954451243,4.6062,231.66,231.51,19.01620802]
[1737954451445,0.02901202,231.59,231.54,0.03258926]
[1737954451841,0.02901202,231.59,231.56,4.3208]
[1737954452041,0.02901202,231.59,231.54,0.03258926]
[1737954452447,0.02901202,231.59,231.55,19.01620802]
[1737954452843,0.02901202,231.59,231.57,4.3207]
[1737954453446,0.02901202,231.59,231.54,0.03258926]
[1737954454547,4.3208,231.57,231.54,0.03258926]
[1737954455647,4.3211,231.55,231.54,0.03258926]
[1737954456349,0.02901202,231.59,231.54,0.03258926]
[1737954456545,0.02901202,231.59,231.54,8.926e-05]
[1737954456758,4.3211,231.55,231.54,8.926e-05]
[1737954459144,7.5326,231.58,231.38,11.6299]
[1737954459753,7.5326,231.58,231.41,4.3236]
[1737954460350,0.03068801,231.52,231.47,0.02833536]
[1737954460547,4.3224,231.48,231.47,0.02833536]
[1737954461057,4.3219,231.51,231.47,0.02833536]
[1737954463364,0.03068801,231.52,231.47,0.02833536]
[1737954464153,4.35228801,231.52,231.47,0.02833536]
[1737954464460,0.03068801,231.52,231.47,0.02833536]
[1737954464857,19.04689603,231.52,231.38,8.77]
[1737954465054,4.3237,231.41,231.38,8.77]
[1737954465358,7.5326,231.58,231.38,8.77]
[1737954465359,19.01620802,231.48,231.38,8.77]
[1737954465559,4.324,231.39,231.38,8.77]
[1737954465961,19.01620802,231.44,231.32,176.69888802]
[1737954466259,0.03308677,231.41,231.36,0.0313277]
[1737954468063,4.3243,231.38,231.36,10.5513277]
[1737954468262,0.03308677,231.41,231.36,10.5513277]
[1737954468763,4.35688677,231.41,231.36,10.5513277]
[1737954469063,0.03308677,231.41,231.36,10.5513277]
[1737954469559,4.35678677,231.41,231.36,10.5513277]
[1737954469764,0.03308677,231.41,231.36,10.5513277]
[1737954470659,0.03308677,231.41,231.36,16.8813277]
[1737954472365,4.3243,231.38,231.36,16.8813277]
[1737954472566,0.03308677,231.41,231.36,16.8813277]
[1737954472967,4.3239,231.4,231.36,16.8813277]
[1737954473161,0.03308677,231.41,231.36,16.8813277]
[1737954474166,0.03308677,231.41,231.36,21.2057277]
[1737954474362,0.03308677,231.41,231.36,16.8813277]